Workbook

Sheet CTRL+Z
A1: k*X*(1-X)
A2: k | C2: Xn | D2: Xn+1
A3: 4 | C3: 0.5 | D3: =$A$3*C3*(1-C3) -> 1 | E3: 0 | F3: 0 | G3: =+$A$3*E3*(1-E3) -> 0
C4: =D3 -> 1 | D4: =$A$3*C4*(1-C4) -> 1.323385845e-13 | E4: 0.05 | F4: 0.05 | G4: =+$A$3*E4*(1-E4) -> 0.19
C5: =D4 -> 1.323385845e-13 | D5: 5.293543381e-13 | E5: 0.1 | F5: 0.1 | G5: 0.36
C6: 5.293543381e-13 | D6: 2.117417353e-12 | E6: 0.15 | F6: 0.15 | G6: 0.51
C7: 2.117417353e-12 | D7: 8.46966941e-12 | E7: 0.2 | F7: 0.2 | G7: 0.64
C8: 8.46966941e-12 | D8: 3.387867764e-11 | E8: 0.25 | F8: 0.25 | G8: 0.75
C9: 3.387867764e-11 | D9: 1.355147106e-10 | E9: 0.3 | F9: 0.3 | G9: 0.84
C10: 1.355147106e-10 | D10: 5.420588422e-10 | E10: 0.35 | F10: 0.35 | G10: 0.91
C11: 5.420588422e-10 | D11: 2.168235367e-09 | E11: 0.4 | F11: 0.4 | G11: 0.96
C12: 2.168235367e-09 | D12: 8.672941451e-09 | E12: 0.45 | F12: 0.45 | G12: 0.99
C13: 8.672941451e-09 | D13: 3.46917655e-08 | E13: 0.5 | F13: 0.5 | G13: 1
C14: 3.46917655e-08 | D14: 1.387670572e-07 | E14: 0.55 | F14: 0.55 | G14: 0.99
C15: 1.387670572e-07 | D15: 5.550681518e-07 | E15: 0.6 | F15: 0.6 | G15: 0.96
C16: 5.550681518e-07 | D16: 2.220271375e-06 | E16: 0.65 | F16: 0.65 | G16: 0.91
C17: 2.220271375e-06 | D17: 8.88106578e-06 | E17: 0.7 | F17: 0.7 | G17: 0.84
C18: 8.88106578e-06 | D18: 3.552394763e-05 | E18: 0.75 | F18: 0.75 | G18: 0.75
C19: 3.552394763e-05 | D19: 0.0001420907427 | E19: 0.8 | F19: 0.8 | G19: 0.64
C20: 0.0001420907427 | D20: 0.0005682822117 | E20: 0.85 | F20: 0.85 | G20: 0.51
C21: 0.0005682822117 | D21: 0.002271837068 | E21: 0.9 | F21: 0.9 | G21: 0.36
C22: 0.002271837068 | D22: 0.009066703298 | E22: 0.95 | F22: 0.95 | G22: 0.19
C23: 0.009066703298 | D23: 0.03593799276 | E23: 1 | F23: 1 | G23: 0
C24: 0.03593799276 | D24: 0.1385858137
C25: 0.1385858137 | D25: 0.4775191439
C26: 0.4775191439 | D26: 0.9979784444
C27: 0.9979784444 | D27: 0.008069875532
C28: 0.008069875532 | D28: 0.03201901056
C29: 0.03201901056 | D29: 0.1239751741
C30: 0.1239751741 | D30: 0.4344213212
C31: 0.4344213212 | D31: 0.9827977476
C32: 0.9827977476 | D32: 0.06762533981
C33: 0.06762533981 | D33: 0.2522086129
C34: 0.2522086129 | D34: 0.7543977139
C35: 0.7543977139 | D35: 0.7411272126
C36: 0.7411272126 | D36: 0.7674306694
C37: 0.7674306694 | D37: 0.7139233482
C38: 0.7139233482 | D38: 0.8169472044
C39: 0.8169472044 | D39: 0.5981778785
C40: 0.5981778785 | D40: 0.9614444167
C41: 0.9614444167 | D41: 0.1482762012
C42: 0.1482762012 | D42: 0.5051614776
C43: 0.5051614776 | D43: 0.9998934366
C44: 0.9998934366 | D44: 0.0004262081858
C45: 0.0004262081858 | D45: 0.001704106129
C46: 0.001704106129 | D46: 0.006804808607
C47: 0.006804808607 | D47: 0.02703401275
C48: 0.02703401275 | D48: 0.1052126996
C49: 0.1052126996 | D49: 0.3765719498
C50: 0.3765719498 | D50: 0.9390620657
C51: 0.9390620657 | D51: 0.2288980099
C52: 0.2288980099 | D52: 0.7060148438
C53: 0.7060148438 | D53: 0.8302315365
C54: 0.8302315365 | D54: 0.5637885293
C55: 0.5637885293 | D55: 0.9837240941
C56: 0.9837240941 | D56: 0.06404400305
C57: 0.06404400305 | D57: 0.2397694749
C58: 0.2397694749 | D58: 0.7291202952
C59: 0.7291202952 | D59: 0.7900155613
C60: 0.7900155613 | D60: 0.6635638967
C61: 0.6635638967 | D61: 0.8929874068
C62: 0.8929874068 | D62: 0.3822435925
C63: 0.3822435925 | D63: 0.944533714
C64: 0.944533714 | D64: 0.2095591085
C65: 0.2095591085 | D65: 0.6625763543
C66: 0.6625763543 | D66: 0.8942757162
C67: 0.8942757162 | D67: 0.3781866386
C68: 0.3781866386 | D68: =$A$3*C68*(1-C68) -> 0.9406460199
C69: =D68 -> 0.9406460199 | D69: 0.2233243404
C70: 0.2233243404 | D70: 0.6938023176
C71: 0.6938023176 | D71: 0.8497626468
C72: 0.8497626468 | D72: 0.5106643636
C73: 0.5106643636 | D73: 0.9995450854
C74: 0.9995450854 | D74: 0.001818830642
C75: 0.001818830642 | D75: 0.007262089988
C76: 0.007262089988 | D76: 0.02883740815
C77: 0.02883740815 | D77: 0.1120232482
C78: 0.1120232482 | D78: 0.3978961601
C79: 0.3978961601 | D79: 0.9582992235
C80: 0.9582992235 | D80: 0.1598472869
C81: 0.1598472869 | D81: 0.537184527
C82: 0.537184527 | D82: 0.9944692438
C83: 0.9944692438 | D83: 0.02200066768
C84: 0.02200066768 | D84: 0.08606655321
C85: 0.08606655321 | D85: 0.3146364065
C86: 0.3146364065 | D86: 0.8625613528
C87: 0.8625613528 | D87: 0.4741970617
C88: 0.4741970617 | D88: 0.9973368335
C89: 0.9973368335 | D89: 0.01062429619
C90: 0.01062429619 | D90: 0.04204568208
C91: 0.04204568208 | D91: 0.1611113708
C92: 0.1611113708 | D92: 0.540617988
C93: 0.540617988 | D93: 0.9934007162
C94: 0.9934007162 | D94: 0.02622293295
C95: 0.02622293295 | D95: 0.1021411629
C96: 0.1021411629 | D96: 0.3668333831
C97: 0.3668333831 | D97: 0.9290666086
C98: 0.9290666086 | D98: 0.2636073817
C99: 0.2636073817 | D99: 0.77647412
B100: 1 | C100: 0.77647412 | D100: 0.694248244
B101: 2 | C101: 0.694248244 | D101: 0.8490704789
B102: 3 | C102: 0.8490704789 | D102: 0.5125992031
B103: 4 | C103: 0.5125992031 | D103: 0.9993650403
B104: 5 | C104: 0.9993650403 | D104: 0.002538226001
B105: 6 | C105: 0.002538226001 | D105: 0.01012713364
B106: 7 | C106: 0.01012713364 | D106: 0.04009829921
B107: 8 | C107: 0.04009829921 | D107: 0.1539617025
B108: 9 | C108: 0.1539617025 | D108: 0.5210299865
B109: 10 | C109: 0.5210299865 | D109: 0.9982309587
B110: 11 | C110: 0.9982309587 | D110: 0.007063647312
B111: 12 | C111: 0.007063647312 | D111: 0.0280550088
B112: 13 | C112: 0.0280550088 | D112: 0.1090717011
B113: 14 | C113: 0.1090717011 | D113: 0.3887002605
B114: 15 | C114: 0.3887002605 | D114: 0.950449472
B115: 16 | C115: 0.950449472 | D115: 0.1883810929
B116: 17 | C116: 0.1883810929 | D116: 0.6115746269
B117: 18 | C117: 0.6115746269 | D117: 0.9502044105
B118: 19 | C118: 0.9502044105 | D118: 0.1892639549
B119: 20 | C119: 0.1892639549 | D119: 0.6137724411
B120: 21 | C120: 0.6137724411 | D120: 0.9482233266
B121: 22 | C121: 0.9482233266 | D121: 0.196383398
B122: 23 | C122: 0.196383398 | D122: 0.631267836
B123: 24 | C123: 0.631267836 | D123: 0.9310750209
B124: 25 | C124: 0.9310750209 | D124: 0.2566973053
B125: 26 | C125: 0.2566973053 | D125: 0.7632151951
B126: 27 | C126: 0.7632151951 | D126: 0.7228710443
B127: 28 | C127: 0.7228710443 | D127: 0.8013139905
B128: 29 | C128: 0.8013139905 | D128: 0.6368395166
B129: 30 | C129: 0.6368395166 | D129: 0.9250997868
B130: 31 | C130: 0.9250997868 | D130: 0.2771606852
B131: 32 | C131: 0.2771606852 | D131: 0.8013705591
B132: 33 | C132: 0.8013705591 | D132: =$A$3*C132*(1-C132) -> 0.6367031443
B133: 34 | C133: =D132 -> 0.6367031443 | D133: 0.9252490013
B134: 35 | C134: 0.9252490013 | D134: 0.2766531475
B135: 36 | C135: 0.2766531475 | D135: 0.8004647339
B136: 37 | C136: 0.8004647339 | D136: 0.6388837747
B137: 38 | C137: 0.6388837747 | D137: 0.9228451885
B138: 39 | C138: 0.9228451885 | D138: 0.2848077864
B139: 40 | C139: 0.2848077864 | D139: 0.8147692448
B140: 41 | C140: 0.8147692448 | D140: 0.6036812901
B141: 42 | C141: 0.6036812901 | D141: 0.9570007603
B142: 43 | C142: 0.9570007603 | D142: 0.1646012203
B143: 44 | C143: 0.1646012203 | D143: 0.5500306343
B144: 45 | C144: 0.5500306343 | D144: 0.9899877425
B145: 46 | C145: 0.9899877425 | D145: 0.03964804874
B146: 47 | C146: 0.03964804874 | D146: 0.1523043239
B147: 48 | C147: 0.1523043239 | D147: 0.5164308673
B148: 49 | C148: 0.5164308673 | D148: 0.9989201064
B149: 50 | C149: 0.9989201064 | D149: 0.0043149097
B150: 51 | C150: 0.0043149097 | D150: 0.01718516502
B151: 52 | C151: 0.01718516502 | D151: 0.06755934048
B152: 53 | C152: 0.06755934048 | D152: 0.251980304
B153: 54 | C153: 0.251980304 | D153: 0.7539449215
B154: 55 | C154: 0.7539449215 | D154: 0.7420479073
B155: 56 | C155: 0.7420479073 | D155: 0.7656512423
B156: 57 | C156: 0.7656512423 | D156: 0.7177176699
B157: 58 | C157: 0.7177176699 | D157: 0.8103960648
B158: 59 | C158: 0.8103960648 | D158: 0.6146171319
B159: 60 | C159: 0.6146171319 | D159: 0.9474516523
B160: 61 | C160: 0.9474516523 | D160: 0.1991480753
B161: 62 | C161: 0.1991480753 | D161: 0.6379524776
B162: 63 | C162: 0.6379524776 | D162: 0.9238764556
B163: 64 | C163: 0.9238764556 | D163: 0.2813150014
B164: 65 | C164: 0.2813150014 | D164: 0.8087074856
B165: 66 | C165: 0.8087074856 | D165: 0.6187987535
B166: 67 | C166: 0.6187987535 | D166: 0.9435474247
B167: 68 | C167: 0.9435474247 | D167: 0.2130627281
B168: 69 | C168: 0.2130627281 | D168: 0.6706680081
B169: 70 | C169: 0.6706680081 | D169: 0.8834897241
B170: 71 | C170: 0.8834897241 | D170: 0.4117425261
B171: 72 | C171: 0.4117425261 | D171: 0.9688424732
B172: 73 | C172: 0.9688424732 | D172: 0.1207469412
B173: 74 | C173: 0.1207469412 | D173: 0.4246684695
B174: 75 | C174: 0.4246684695 | D174: 0.977300642
B175: 76 | C175: 0.977300642 | D175: 0.0887363885
B176: 77 | C176: 0.0887363885 | D176: 0.3234489674
B177: 78 | C177: 0.3234489674 | D177: 0.8753189316
B178: 79 | C178: 0.8753189316 | D178: 0.4365427983
B179: 80 | C179: 0.4365427983 | D179: 0.9838927342
B180: 81 | C180: 0.9838927342 | D180: 0.06339128707
B181: 82 | C181: 0.06339128707 | D181: 0.2374913272
B182: 83 | C182: 0.2374913272 | D182: 0.7243567868
B183: 84 | C183: 0.7243567868 | D183: 0.7986561289
B184: 85 | C184: 0.7986561289 | D184: 0.6432180667
B185: 86 | C185: 0.6432180667 | D185: 0.9179543415
B186: 87 | C186: 0.9179543415 | D186: 0.3012566736
B187: 88 | C187: 0.3012566736 | D187: 0.8420043608
B188: 89 | C188: 0.8420043608 | D188: 0.5321320687
B189: 90 | C189: 0.5321320687 | D189: 0.9958701206
B190: 91 | C190: 0.9958701206 | D190: 0.01645129383
B191: 92 | C191: 0.01645129383 | D191: 0.06472259503
B192: 93 | C192: 0.06472259503 | D192: 0.2421343229
B193: 94 | C193: 0.2421343229 | D193: 0.7340211703
B194: 95 | C194: 0.7340211703 | D194: 0.7809363674
B195: 96 | C195: 0.7809363674 | D195: 0.6842990298
B196: 97 | C196: 0.6842990298 | D196: =$A$3*C196*(1-C196) -> 0.8641354705
B197: 98 | C197: =D196 -> 0.8641354705 | D197: 0.4696214365
B198: 99 | C198: 0.4696214365 | D198: 0.9963085715
B199: 100 | C199: 0.9963085715 | D199: 0.01471120731
B200: 101 | C200: 0.01471120731 | D200: 0.05797915074
... 800 more rows
